fUSD/lending_fUSD_20250105
["ID","MTS","AMOUNT","RATE_DAILY","PERIOD"]
[347791730,1736110260550,-500.0,0.0001158,2]
[347791731,1736110260559,-500.0,0.0001158,2]
[347791732,1736110260569,-150.0,0.00011599,2]
[347791733,1736110260578,-150.0,0.00011621,2]
[347791734,1736110260588,-449.94,0.00011639,2]
[347791735,1736110260597,-500.0,0.00011641,2]
[347791736,1736110260607,-500.0,0.00011641,2]
[347791737,1736110260617,-500.0,0.00011641,2]
[347791738,1736110260626,-500.0,0.00011641,2]
[347791739,1736110260635,-217.25,0.00011641,2]
[347791740,1736110260645,-500.0,0.00011642,2]
[347791741,1736110260654,-259.2251531,0.00011642,2]
[347791742,1736110260663,-500.0,0.00011642,2]
[347791743,1736110260673,-1074.02,0.00011642,2]
[347791744,1736110260686,-500.0,0.00011642,2]
[347791745,1736110260696,-500.0,0.00011642,2]
[347791746,1736110260706,-1104.02,0.00011642,2]
[347791747,1736110260715,-648.19,0.00011642,2]
[347791748,1736110260724,-500.0,0.00011642,2]
[347791749,1736110260734,-500.0,0.00011642,2]
[347791750,1736110260744,-514.92,0.00011642,2]
[347791751,1736110260753,-1003.35,0.00011642,2]
[347791752,1736110260764,-500.0,0.00011642,2]
[347791753,1736110260773,-401.38149691,0.00011642,2]
[347791754,1736110260782,-861.84,0.00011642,2]
[347791755,1736110260792,-1819.314744,0.00011642,2]
[347791756,1736110260802,-535.24,0.00011642,2]
[347791757,1736110260812,-500.0,0.00011642,2]
[347791758,1736110260821,-585.79,0.00011642,2]
[347791759,1736110260831,-560.7,0.00011642,2]
[347791760,1736110260840,-500.0,0.00011642,2]
[347791761,1736110260850,-1026.66,0.00011642,2]
[347791762,1736110260860,-1438.649122,0.00011642,2]
[347791763,1736110260870,-500.0,0.00011642,2]
[347791764,1736110260879,-1226.24,0.00011642,2]
[347791765,1736110260889,-1147.93,0.00011642,2]
[347791766,1736110260899,-416.86875813,0.00011642,2]
[347791767,1736110260909,-730.32,0.00011642,2]
[347791768,1736110260918,-675.39,0.00011642,2]
[347791769,1736110260928,-500.0,0.00011642,2]
[347791770,1736110260938,-500.0,0.00011642,2]
[347791771,1736110260947,-500.0,0.00011642,2]
[347791772,1736110260957,-820.25,0.00011642,2]
[347791773,1736110260966,-500.0,0.00011642,2]
[347791774,1736110260976,-500.0,0.00011642,2]
[347791775,1736110260985,-1404.86,0.00011642,2]
[347791776,1736110260995,-500.0,0.00011642,2]
[347791777,1736110261005,-500.0,0.00011642,2]
[347791778,1736110261016,-578.95,0.00011642,2]
[347791779,1736110261025,-566.59,0.00011642,2]
[347791780,1736110261035,-500.0,0.00011642,2]
[347791781,1736110261045,-500.0,0.00011642,2]
[347791782,1736110261054,-500.0,0.00011642,2]
[347791783,1736110261063,-1734.63,0.00011642,2]
[347791784,1736110261072,-158.17845548,0.00011643,2]
[347791785,1736110261081,-1075.05,0.00011643,2]
[347791786,1736110261090,-501.44,0.00011643,2]
[347791787,1736110261100,-252.18,0.00011643,2]
[347791788,1736110261109,-608.37968174,0.00011643,2]
[347791789,1736110261119,-500.0,0.00011643,2]
[347791790,1736110261128,-500.0,0.00011643,2]
[347791791,1736110261138,-500.0,0.00011643,2]
[347791792,1736110261147,-500.0,0.00011643,2]
[347791793,1736110261157,-500.0,0.00011643,2]
[347791794,1736110261167,-500.0,0.00011643,2]
[347791795,1736110261177,-500.0,0.00011643,2]
[347791796,1736110261186,-500.0,0.00011643,2]
[347791797,1736110261195,-500.0,0.00011643,2]
[347791798,1736110261205,-500.0,0.00011643,2]
[347791799,1736110261215,-500.0,0.00011643,2]
[347791800,1736110261225,-500.0,0.00011643,2]
[347791801,1736110261235,-583.36,0.00011643,2]
[347791802,1736110261244,-500.0,0.00011643,2]
[347791803,1736110261255,-500.0,0.00011643,2]
[347791804,1736110261267,-500.0,0.00011643,2]
[347791805,1736110261277,-500.0,0.00011643,2]
[347791806,1736110261286,-500.0,0.00011643,2]
[347791807,1736110261296,-640.68,0.00011643,2]
[347791808,1736110261307,-500.0,0.00011643,2]
[347791809,1736110261316,-500.0,0.00011643,2]
[347791810,1736110261325,-500.0,0.00011643,2]
[347791811,1736110261335,-500.0,0.00011643,2]
[347791812,1736110261345,-500.0,0.00011643,2]
[347791813,1736110261355,-500.0,0.00011643,2]
[347791814,1736110261364,-500.0,0.00011643,2]
[347791815,1736110261374,-500.0,0.00011643,2]
[347791816,1736110261383,-500.0,0.00011643,2]
[347791817,1736110261393,-500.0,0.00011643,2]
[347791818,1736110261402,-500.0,0.00011643,2]
[347791819,1736110261411,-500.0,0.00011643,2]
[347791820,1736110261421,-500.0,0.00011643,2]
[347791821,1736110261431,-500.0,0.00011643,2]
[347791822,1736110261440,-500.0,0.00011643,2]
[347791823,1736110261450,-500.0,0.00011643,2]
[347791824,1736110261460,-500.0,0.00011643,2]
[347791825,1736110261469,-500.0,0.00011643,2]
[347791826,1736110261479,-500.0,0.00011643,2]
[347791827,1736110261487,-520.31,0.00011643,2]
[347791828,1736110261496,-818.39,0.00011643,2]
[347791829,1736110261505,-627.79,0.00011643,2]
[347791830,1736110261517,-500.0,0.00011643,2]
[347791831,1736110261526,-500.0,0.00011643,2]
[347791832,1736110261536,-500.0,0.00011643,2]
[347791833,1736110261545,-500.0,0.00011643,2]
[347791834,1736110261554,-500.0,0.00011643,2]
[347791835,1736110261563,-421.98,0.00011643,2]
[347791836,1736110261573,-500.0,0.00011643,2]
[347791837,1736110261583,-500.0,0.00011643,2]
[347791838,1736110261592,-254.58670988,0.00011643,2]
[347791839,1736110261601,-500.0,0.00011643,2]
[347791840,1736110261611,-500.0,0.00011643,2]
[347791841,1736110261620,-500.0,0.00011643,2]
[347791842,1736110261630,-500.0,0.00011643,2]
[347791843,1736110261640,-500.0,0.00011643,2]
[347791844,1736110261649,-500.0,0.00011643,2]
[347791845,1736110261659,-1007.81,0.00011643,2]
[347791846,1736110261668,-500.0,0.00011643,2]
[347791847,1736110261678,-500.0,0.00011643,2]
[347791848,1736110261690,-663.32,0.00011643,2]
[347791849,1736110261700,-500.0,0.00011643,2]
[347791850,1736110261710,-500.0,0.00011643,2]
[347791851,1736110261720,-500.0,0.00011643,2]
[347791852,1736110261729,-500.0,0.00011643,2]
[347791853,1736110261739,-2310.44,0.00011643,2]
[347791854,1736110261748,-500.0,0.00011643,2]
[347791855,1736110261758,-150.0,0.00011653,2]
[347791856,1736110261769,-150.0,0.0001166,2]
[347791857,1736110261779,-150.0,0.0001166,2]
[347791858,1736110261788,-500.0,0.00011679,2]
[347791859,1736110261798,-5090.00762307,0.00011679,2]
[347791860,1736110261807,-634326.25632854,0.0001168,2]
[347791861,1736110261817,-487.204,0.0001168,2]
[347791862,1736110261827,-7468.38516378,0.0001169,2]
[347791863,1736110261837,-150.0,0.00011693,2]
[347791864,1736110261848,-1000.0,0.000117,2]
[347791865,1736110261859,-150.0,0.0001171,2]
[347791866,1736110261869,-150.0,0.00011717,2]
[347791867,1736110261878,-500.0,0.00011729,2]
[347791868,1736110261889,-500.0,0.00011729,2]
[347791869,1736110261898,-500.0,0.00011729,2]
[347791870,1736110261908,-500.0,0.00011729,2]
[347791871,1736110261917,-500.0,0.00011729,2]
[347791872,1736110261927,-500.0,0.00011729,2]
[347791873,1736110261938,-500.0,0.00011729,2]
[347791874,1736110261948,-500.0,0.00011729,2]
[347791875,1736110261957,-500.0,0.00011729,2]
[347791876,1736110261967,-500.0,0.00011729,2]
[347791877,1736110261977,-500.0,0.00011729,2]
[347791878,1736110261987,-500.0,0.00011729,2]
[347791879,1736110261996,-500.0,0.00011729,2]
[347791880,1736110262006,-500.0,0.00011729,2]
[347791881,1736110262015,-500.0,0.00011729,2]
[347791882,1736110262025,-500.0,0.00011729,2]
[347791883,1736110262034,-500.0,0.00011729,2]
[347791884,1736110262045,-500.0,0.00011729,2]
[347791885,1736110262054,-150.0,0.00011732,2]
[347791886,1736110262063,-150.0,0.00011734,2]
[347791887,1736110262073,-150.0,0.00011748,2]
[347791888,1736110262083,-150.0,0.00011761,2]
[347791889,1736110262092,-150.0,0.00011763,2]
[347791890,1736110262101,-150.0,0.0001177,2]
[347791891,1736110262113,-150.0,0.00011771,2]
[347791892,1736110262123,-150.0,0.00011774,2]
[347791893,1736110262132,-499.0,0.00011781,2]
[347791894,1736110262143,-1500.0,0.00011781,2]
[347791895,1736110262153,-150.0,0.00011781,2]
[347791896,1736110262164,-150.0,0.00011785,2]
[347791897,1736110262173,-150.0,0.00011797,2]
[347791898,1736110262183,-200.0,0.000118,2]
[347791899,1736110262193,-2696.76004816,0.00011808,2]
[347791900,1736110262202,-150.0,0.00011813,2]
[347791901,1736110262212,-811.42,0.00011814,2]
[347791902,1736110262222,-1283.53,0.00011814,2]
[347791903,1736110262232,-778.09,0.00011814,2]
[347791904,1736110262242,-500.0,0.00011814,2]
[347791905,1736110262252,-881.37,0.00011814,2]
[347791906,1736110262262,-500.0,0.00011814,2]
[347791907,1736110262272,-150.0,0.00011814,2]
[347791908,1736110262282,-1046.17,0.00011814,2]
[347791909,1736110262291,-500.0,0.00011814,2]
[347791910,1736110262302,-573.11,0.00011814,2]
[347791911,1736110262311,-500.0,0.00011814,2]
[347791912,1736110262322,-612.62,0.00011814,2]
[347791913,1736110262332,-500.0,0.00011814,2]
[347791914,1736110262341,-500.0,0.00011814,2]
[347791915,1736110262351,-500.0,0.00011814,2]
[347791916,1736110262362,-500.0,0.00011814,2]
[347791917,1736110262372,-1480.57,0.00011814,2]
[347791918,1736110262381,-500.0,0.00011814,2]
[347791919,1736110262391,-500.0,0.00011814,2]
[347791920,1736110262400,-500.0,0.00011814,2]
[347791921,1736110262411,-500.0,0.00011814,2]
[347791922,1736110262421,-1099.33,0.00011814,2]
[347791923,1736110262430,-500.0,0.00011814,2]
[347791924,1736110262439,-500.0,0.00011815,2]
[347791925,1736110262450,-507.57,0.00011815,2]
[347791926,1736110262460,-500.0,0.00011815,2]
[347791927,1736110262469,-500.0,0.00011815,2]
[347791928,1736110262478,-500.0,0.00011816,2]
[347791929,1736110262489,-209.0,0.0001182,2]
[347791930,1736110262498,-7468.38516378,0.00011824,2]
[347791931,1736110262508,-161.05129517,0.00011835,2]
[347791932,1736110262518,-1500.0,0.00011838,2]
[347791933,1736110262528,-844.11,0.00011853,2]
[347791934,1736110262537,-633.18,0.00011853,2]
[347791935,1736110262547,-1017.38,0.00011853,2]
[347791936,1736110262557,-1235.47,0.00011853,2]
[347791937,1736110262566,-639.69,0.00011853,2]
[347791938,1736110262575,-500.0,0.00011853,2]
[347791939,1736110262585,-500.0,0.00011853,2]
[347791940,1736110262595,-150.0,0.00011855,2]
[347791941,1736110262603,-150.0,0.00011858,2]
[347791942,1736110262612,-169.0,0.00011871,2]
[347791943,1736110262620,-170.0,0.00011871,2]
[347791944,1736110262629,-242.12,0.00011875,2]
[347791945,1736110262687,-201.0,0.00011875,2]
[347791946,1736110262697,-201.0,0.00011875,2]
[347791947,1736110262706,-150.0,0.00011886,2]
[347791948,1736110262716,-150.0,0.00011897,2]
[347791949,1736110262726,-150.0,0.00011903,2]
[347791950,1736110262736,-150.0,0.00011906,2]
[347791951,1736110262745,-150.0,0.00011911,2]
[347791952,1736110262754,-500.0,0.00011916,2]
[347791953,1736110262766,-500.0,0.00011916,2]
[347791954,1736110262776,-1074.02,0.00011916,2]
[347791955,1736110262785,-500.0,0.00011916,2]
[347791956,1736110262795,-500.0,0.00011916,2]
[347791957,1736110262804,-1104.02,0.00011916,2]
[347791958,1736110262814,-648.19,0.00011916,2]
[347791959,1736110262824,-500.0,0.00011916,2]
[347791960,1736110262834,-500.0,0.00011916,2]
[347791961,1736110262843,-514.92,0.00011916,2]
[347791962,1736110262853,-1003.35,0.00011916,2]
[347791963,1736110262862,-500.0,0.00011916,2]
[347791964,1736110262872,-861.84,0.00011916,2]
[347791965,1736110262882,-535.24,0.00011916,2]
[347791966,1736110262891,-500.0,0.00011916,2]
[347791967,1736110262901,-585.79,0.00011916,2]
[347791968,1736110262910,-560.7,0.00011916,2]
[347791969,1736110262921,-500.0,0.00011916,2]
[347791970,1736110262931,-1026.66,0.00011916,2]
[347791971,1736110262940,-500.0,0.00011916,2]
[347791972,1736110262950,-1226.24,0.00011916,2]
[347791973,1736110262960,-1147.93,0.00011916,2]
[347791974,1736110262970,-730.32,0.00011916,2]
[347791975,1736110262979,-675.39,0.00011916,2]
[347791976,1736110262988,-500.0,0.00011916,2]
[347791977,1736110262996,-500.0,0.00011916,2]
[347791978,1736110263006,-500.0,0.00011916,2]
[347791979,1736110263015,-820.25,0.00011916,2]
[347791980,1736110263025,-500.0,0.00011916,2]
[347791981,1736110263035,-1404.86,0.00011916,2]
[347791982,1736110263045,-500.0,0.00011916,2]
[347791983,1736110263054,-500.0,0.00011916,2]
[347791984,1736110263064,-566.59,0.00011916,2]
[347791985,1736110263073,-500.0,0.00011916,2]
[347791986,1736110263082,-500.0,0.00011916,2]
[347791987,1736110263092,-1734.63,0.00011916,2]
[347791988,1736110263101,-1075.05,0.00011917,2]
[347791989,1736110263111,-501.44,0.00011917,2]
[347791990,1736110263120,-500.0,0.00011917,2]
[347791991,1736110263129,-500.0,0.00011917,2]
[347791992,1736110263139,-500.0,0.00011917,2]
[347791993,1736110263150,-500.0,0.00011917,2]
[347791994,1736110263160,-500.0,0.00011917,2]
[347791995,1736110263170,-255.8250913,0.00011917,2]
[347791996,1736110263179,-630.14,0.00011917,2]
[347791997,1736110263190,-500.0,0.00011917,2]
[347791998,1736110263200,-607.95858304,0.00011917,2]
[347791999,1736110263210,-583.36,0.00011917,2]
[347792000,1736110263220,-500.0,0.00011917,2]
[347792001,1736110263230,-500.0,0.00011917,2]
[347792002,1736110263240,-500.0,0.00011917,2]
[347792003,1736110263250,-500.0,0.00011917,2]
[347792004,1736110263260,-640.68,0.00011917,2]
[347792005,1736110263272,-500.0,0.00011917,2]
[347792006,1736110263282,-500.0,0.00011917,2]
[347792007,1736110263292,-500.0,0.00011917,2]
[347792008,1736110263302,-500.0,0.00011917,2]
[347792009,1736110263312,-500.0,0.00011917,2]
[347792010,1736110263322,-500.0,0.00011917,2]
[347792011,1736110263332,-500.0,0.00011917,2]
[347792012,1736110263342,-500.0,0.00011917,2]
[347792013,1736110263353,-500.0,0.00011917,2]
[347792014,1736110263362,-500.0,0.00011917,2]
[347792015,1736110263371,-500.0,0.00011917,2]
[347792016,1736110263381,-818.39,0.00011917,2]
[347792017,1736110263391,-627.79,0.00011917,2]
[347792018,1736110263401,-500.0,0.00011917,2]
[347792019,1736110263410,-500.0,0.00011917,2]
[347792020,1736110263420,-500.0,0.00011917,2]
[347792021,1736110263431,-500.0,0.00011917,2]
[347792022,1736110263440,-500.0,0.00011917,2]
[347792023,1736110263450,-500.0,0.00011917,2]
[347792024,1736110263460,-500.0,0.00011917,2]
[347792025,1736110263470,-329.31058941,0.00011917,2]
[347792026,1736110263479,-500.0,0.00011917,2]
[347792027,1736110263489,-596.77219749,0.00011917,2]
[347792028,1736110263498,-1007.81,0.00011917,2]
[347792029,1736110263507,-500.0,0.00011917,2]
[347792030,1736110263518,-500.0,0.00011917,2]
[347792031,1736110263527,-663.32,0.00011917,2]
[347792032,1736110263537,-500.0,0.00011917,2]
[347792033,1736110263545,-500.0,0.00011917,2]
[347792034,1736110263556,-500.0,0.00011917,2]
[347792035,1736110263566,-2310.44,0.00011917,2]
[347792036,1736110263575,-1500.0,0.00011922,2]
[347792037,1736110263585,-150.0,0.00011923,2]
[347792038,1736110263594,-1500.0,0.00011927,2]
[347792039,1736110263604,-150.0,0.00011931,2]
[347792040,1736110263613,-150.0,0.00011946,2]
[347792041,1736110263623,-150.0,0.00011947,2]
[347792042,1736110263632,-150.01527192,0.00011953,2]
[347792043,1736110263641,-7468.38516378,0.00011959,2]
[347792044,1736110263651,-150.0,0.00011971,2]
[347792045,1736110263660,-662.20984684,0.00011975,2]
[347792046,1736110263670,-1000.0,0.00011999,2]
[347792047,1736110263679,-2292.71,0.00012,2]
[347792048,1736110263689,-150.0,0.00012,2]
[347792049,1736110263698,-1612.0,0.00012,2]
[347792050,1736110263707,-500.0,0.00012003,2]
[347792051,1736110263718,-500.0,0.00012003,2]
[347792052,1736110263727,-500.0,0.00012003,2]
[347792053,1736110263736,-500.0,0.00012003,2]
[347792054,1736110263745,-500.0,0.00012003,2]
[347792055,1736110263754,-500.0,0.00012003,2]
[347792056,1736110263765,-500.0,0.00012003,2]
[347792057,1736110263775,-500.0,0.00012003,2]
[347792058,1736110263785,-500.0,0.00012003,2]
[347792059,1736110263795,-500.0,0.00012003,2]
[347792060,1736110263804,-500.0,0.00012003,2]
[347792061,1736110263814,-500.0,0.00012003,2]
[347792062,1736110263824,-500.0,0.00012003,2]
[347792063,1736110263833,-150.0,0.00012006,2]
[347792064,1736110263843,-537.65714328,0.00012016,2]
[347792065,1736110263852,-1977.84750398,0.00012016,2]
[347792066,1736110263862,-212.64538762,0.00012016,2]
[347792067,1736110263871,-150.0,0.00012024,2]
[347792068,1736110263880,-150.0,0.00012024,2]
[347792069,1736110263890,-150.0,0.00012028,2]
[347792070,1736110263899,-150.0,0.00012031,2]
[347792071,1736110263909,-150.0,0.00012034,2]
[347792072,1736110263919,-772.16407487,0.00012047,2]
[347792073,1736110263929,-150.0,0.0001205,2]
[347792074,1736110263939,-150.0,0.0001205,2]
[347792075,1736110263949,-1386.6534272,0.00012053,2]
[347792076,1736110263958,-499.0,0.00012055,2]
[347792077,1736110263968,-36683.54,0.00012055,2]
[347792078,1736110263978,-150.0,0.00012055,2]
[347792079,1736110263988,-150.0,0.00012064,2]
[347792080,1736110263998,-150.0,0.00012065,2]
[347792081,1736110264008,-150.0,0.00012077,2]
[347792082,1736110264018,-150.0,0.00012077,2]
[347792083,1736110264027,-506.0,0.00012082,2]
[347792084,1736110264037,-499.0,0.00012082,2]
[347792085,1736110264046,-150.0,0.00012083,2]
[347792086,1736110264056,-150.0,0.00012084,2]
[347792087,1736110264065,-811.42,0.00012088,2]
[347792088,1736110264077,-1283.53,0.00012088,2]
[347792089,1736110264087,-778.09,0.00012088,2]
[347792090,1736110264096,-500.0,0.00012088,2]
[347792091,1736110264106,-881.37,0.00012088,2]
[347792092,1736110264116,-500.0,0.00012088,2]
[347792093,1736110264127,-1046.17,0.00012088,2]
[347792094,1736110264137,-500.0,0.00012088,2]
[347792095,1736110264147,-573.11,0.00012088,2]
[347792096,1736110264156,-500.0,0.00012088,2]
[347792097,1736110264166,-612.62,0.00012088,2]
[347792098,1736110264175,-500.0,0.00012088,2]
[347792099,1736110264185,-500.0,0.00012088,2]
[347792100,1736110264196,-500.0,0.00012088,2]
[347792101,1736110264206,-500.0,0.00012088,2]
[347792102,1736110264215,-1480.57,0.00012088,2]
[347792103,1736110264225,-500.0,0.00012088,2]
[347792104,1736110264234,-500.0,0.00012088,2]
[347792105,1736110264244,-1099.33,0.00012088,2]
[347792106,1736110264254,-500.0,0.00012089,2]
[347792107,1736110264264,-507.57,0.00012089,2]
[347792108,1736110264274,-178.34,0.00012089,2]
[347792109,1736110264283,-500.0,0.00012089,2]
[347792110,1736110264293,-209.0,0.0001209,2]
[347792111,1736110264302,-7468.38516378,0.00012093,2]
[347792112,1736110264312,-150.0,0.00012095,2]
[347792113,1736110264322,-150.0,0.00012099,2]
[347792114,1736110264332,-537.65714328,0.00012108,2]
[347792115,1736110264342,-8646.57041668,0.00012108,2]
[347792116,1736110264351,-1977.84750397,0.00012108,2]
[347792117,1736110264362,-150.0,0.00012109,2]
[347792118,1736110264371,-150.0,0.00012115,2]
[347792119,1736110264381,-680273.49673205,0.00012116,2]
[347792120,1736110264390,-150.0,0.00012116,2]
[347792121,1736110264400,-150.0,0.00012116,2]
[347792122,1736110264410,-150.0,0.00012119,2]
[347792123,1736110264420,-150.0,0.00012126,2]
[347792124,1736110264430,-844.11,0.00012127,2]
[347792125,1736110264439,-633.18,0.00012127,2]
[347792126,1736110264449,-1017.38,0.00012127,2]
[347792127,1736110264458,-1235.47,0.00012127,2]
[347792128,1736110264468,-639.69,0.00012127,2]
[347792129,1736110264477,-500.0,0.00012127,2]
[347792130,1736110264487,-150.0,0.00012129,2]
[347792131,1736110264496,-150.0,0.00012129,2]
[347792132,1736110264505,-150.0,0.00012132,2]
[347792133,1736110264516,-150.0,0.00012132,2]
[347792134,1736110264524,-150.0,0.00012138,2]
[347792135,1736110264534,-2314.25104281,0.00012147,8]
[347792136,1736110264543,-150.0,0.00012147,2]
[347792137,1736110264553,-150.0,0.0001215,2]
[347792138,1736110264562,-150.0,0.00012154,2]
[347792139,1736110264571,-150.0,0.00012164,2]
[347792140,1736110264580,-150.0,0.00012164,2]
[347792141,1736110264589,-150.0,0.00012164,2]
[347792142,1736110264599,-150.0,0.00012168,2]
[347792143,1736110264608,-150.0,0.00012172,2]
[347792144,1736110264618,-150.0,0.00012173,2]
[347792145,1736110264627,-150.0,0.00012176,2]
[347792146,1736110264636,-150.0,0.00012181,2]
[347792147,1736110264645,-150.0,0.00012188,2]
[347792148,1736110264654,-726.18399974,0.0001219,2]
[347792149,1736110264662,-500.0,0.0001219,2]
[347792150,1736110264672,-500.0,0.0001219,2]
[347792151,1736110264681,-1074.02,0.0001219,2]
[347792152,1736110264695,-500.0,0.0001219,2]
[347792153,1736110264706,-500.0,0.0001219,2]
[347792154,1736110264716,-1104.02,0.0001219,2]
[347792155,1736110264726,-648.19,0.0001219,2]
[347792156,1736110264737,-500.0,0.0001219,2]
[347792157,1736110264746,-500.0,0.0001219,2]
[347792158,1736110264756,-514.92,0.0001219,2]
[347792159,1736110264766,-1003.35,0.0001219,2]
[347792160,1736110264775,-2696.76004816,0.0001219,2]
[347792161,1736110264784,-500.0,0.0001219,2]
[347792162,1736110264794,-861.84,0.0001219,2]
[347792163,1736110264803,-535.24,0.0001219,2]
[347792164,1736110264814,-585.79,0.0001219,2]
[347792165,1736110264824,-560.7,0.0001219,2]
[347792166,1736110264834,-1026.66,0.0001219,2]
[347792167,1736110264846,-500.0,0.0001219,2]
[347792168,1736110264857,-1226.24,0.0001219,2]
[347792169,1736110264867,-1147.93,0.0001219,2]
[347792170,1736110264876,-730.32,0.0001219,2]
[347792171,1736110264886,-675.39,0.0001219,2]
[347792172,1736110264898,-500.0,0.0001219,2]
[347792173,1736110264908,-820.25,0.0001219,2]
[347792174,1736110264919,-500.0,0.0001219,2]
[347792175,1736110264928,-1404.86,0.0001219,2]
[347792176,1736110264938,-500.0,0.0001219,2]
[347792177,1736110264948,-500.0,0.0001219,2]
[347792178,1736110264958,-17009.1594995,0.0001219,2]
[347792179,1736110264969,-566.59,0.0001219,2]
[347792180,1736110264979,-1734.63,0.0001219,2]
[347792181,1736110264991,-1075.05,0.00012191,2]
[347792182,1736110265001,-501.44,0.00012191,2]
[347792183,1736110265012,-500.0,0.00012191,2]
[347792184,1736110265022,-500.0,0.00012191,2]
[347792185,1736110265031,-583.36,0.00012191,2]
[347792186,1736110265040,-500.0,0.00012191,2]
[347792187,1736110265050,-180.01528159,0.00012191,2]
[347792188,1736110265059,-500.0,0.00012191,2]
[347792189,1736110265069,-640.68,0.00012191,2]
[347792190,1736110265079,-500.0,0.00012191,2]
[347792191,1736110265089,-500.0,0.00012191,2]
[347792192,1736110265098,-500.0,0.00012191,2]
[347792193,1736110265108,-322.39858079,0.00012191,2]
[347792194,1736110265116,-500.0,0.00012191,2]
[347792195,1736110265126,-500.0,0.00012191,2]
[347792196,1736110265135,-500.0,0.00012191,2]
[347792197,1736110265144,-500.0,0.00012191,2]
[347792198,1736110265153,-818.39,0.00012191,2]
[347792199,1736110265162,-627.79,0.00012191,2]
[347792200,1736110265171,-500.0,0.00012191,2]
[347792201,1736110265181,-182.38320201,0.00012191,2]
[347792202,1736110265190,-500.0,0.00012191,2]
[347792203,1736110265200,-500.0,0.00012191,2]
[347792204,1736110265209,-1007.81,0.00012191,2]
[347792205,1736110265219,-663.32,0.00012191,2]
[347792206,1736110265228,-500.0,0.00012191,2]
[347792207,1736110265237,-2310.44,0.00012191,2]
[347792208,1736110265247,-17009.15949942,0.00012191,2]
[347792209,1736110265256,-17009.15949942,0.00012192,2]
[347792210,1736110265265,-150.0,0.00012193,2]
[347792211,1736110265275,-726.18399974,0.00012193,2]
[347792212,1736110265284,-17009.15949942,0.00012193,2]
[347792213,1736110265295,-17009.15949942,0.00012194,2]
[347792214,1736110265306,-1500.0,0.00012195,2]
[347792215,1736110265316,-17009.15949942,0.00012196,2]
[347792216,1736110265326,-726.18399974,0.00012197,2]
[347792217,1736110265336,-17009.15949942,0.00012197,2]
[347792218,1736110265346,-17009.15949942,0.00012198,2]
[347792219,1736110265356,-17009.15949942,0.00012199,2]
[347792220,1736110265365,-211.41098247,0.00012199,2]
[347792221,1736110265375,-534.99,0.00012199,2]
[347792222,1736110265384,-500.0,0.00012199,2]
[347792223,1736110265394,-500.0,0.00012199,2]
[347792224,1736110265404,-500.0,0.00012199,2]
[347792225,1736110265414,-500.0,0.00012199,2]
[347792226,1736110265423,-161.05129517,0.000122,2]
[347792227,1736110265433,-726.18399974,0.000122,2]
[347792228,1736110265443,-537.65714328,0.000122,2]
[347792229,1736110265452,-941.95990846,0.000122,2]